[Event "Early-Titled-Tuesday-Blitz-September-12-2023"]
[Site "Chess.com"]
[Date "2023.09.12"]
[Round "3"]
[White "AliKa2810"]
[Black "ShiroglanTalibov"]
[Result "0-1"]
[WhiteElo "2575"]
[BlackElo "2845"]
[TimeControl "180+1"]
[EndTime "8:29:00 PDT"]
[Termination "ShiroglanTalibov won by resignation"]

1. d4 {[%clk 0:03:00.9]} 1... d5 {[%clk 0:02:56.5]} 2. c4 {[%clk 0:03:01.1]}
2... e6 {[%clk 0:02:56.5]} 3. Nf3 {[%clk 0:03:01.2]} 3... Nf6 {[%clk 0:02:53.4]}
4. g3 {[%clk 0:03:00.7]} 4... dxc4 {[%clk 0:02:35.8]} 5. Bg2 {[%clk 0:02:58.8]}
5... Nbd7 {[%clk 0:02:23.5]} 6. O-O {[%clk 0:02:58.5]} 6... Nb6 {[%clk
0:02:21.3]} 7. a4 {[%clk 0:02:57.3]} 7... a5 {[%clk 0:02:16.5]} 8. Qc2 {[%clk
0:02:56.6]} 8... Bb4 {[%clk 0:02:08.1]} 9. Nbd2 {[%clk 0:02:52.4]} 9... Bxd2
{[%clk 0:02:05.1]} 10. Bxd2 {[%clk 0:02:53.3]} 10... O-O {[%clk 0:02:03.4]} 11.
Rfd1 {[%clk 0:02:50.7]} 11... Bd7 {[%clk 0:02:02.3]} 12. Ne5 {[%clk 0:02:46.8]}
12... Nfd5 {[%clk 0:01:53.2]} 13. Nxc4 {[%clk 0:02:34.4]} 13... Nxc4 {[%clk
0:01:52.5]} 14. Qxc4 {[%clk 0:02:35.3]} 14... Bc6 {[%clk 0:01:50.6]} 15. e4
{[%clk 0:02:35.4]} 15... Nb6 {[%clk 0:01:49.7]} 16. Qc2 {[%clk 0:02:35.6]} 16...
Qxd4 {[%clk 0:01:42.8]} 17. Bxa5 {[%clk 0:02:32.4]} 17... Qc4 {[%clk 0:01:38.7]}
18. Qxc4 {[%clk 0:02:11.5]} 18... Nxc4 {[%clk 0:01:39.6]} 19. Bxc7 {[%clk
0:02:07.9]} 19... Nxb2 {[%clk 0:01:35.3]} 20. Rdb1 {[%clk 0:02:04.6]} 20... Nxa4
{[%clk 0:01:33.5]} 21. e5 {[%clk 0:02:04.8]} 21... Nc3 {[%clk 0:01:27.1]} 22.
Re1 {[%clk 0:01:56.1]} 22... Bxg2 {[%clk 0:01:17.2]} 23. Kxg2 {[%clk 0:01:57]}
23... Nd5 {[%clk 0:01:15.5]} 24. Bd6 {[%clk 0:01:57.1]} 24... Rfc8 {[%clk
0:01:14.5]} 25. Rab1 {[%clk 0:01:48]} 25... b6 {[%clk 0:01:13.5]} 26. Rb2 {[%clk
0:01:46.8]} 26... h5 {[%clk 0:01:11.9]} 27. h4 {[%clk 0:01:46.2]} 27... Ra4
{[%clk 0:01:10.6]} 28. Reb1 {[%clk 0:01:40.7]} 28... Kh7 {[%clk 0:01:09.6]} 29.
Re1 {[%clk 0:01:38]} 29... Kg6 {[%clk 0:01:03.2]} 30. Reb1 {[%clk 0:01:38.1]}
30... Rc3 {[%clk 0:01:02.4]} 31. Re1 {[%clk 0:01:34.3]} 31... Kf5 {[%clk
0:01:00.9]} 32. Reb1 {[%clk 0:01:31.9]} 32... Rac4 {[%clk 0:00:53.1]} 33. Ra1
{[%clk 0:01:11]} 33... Rc2 {[%clk 0:00:50.2]} 34. Rxc2 {[%clk 0:01:09.4]} 34...
Rxc2 {[%clk 0:00:49.9]} 35. Ra7 {[%clk 0:01:09.4]} 35... Kg6 {[%clk 0:00:47.4]}
36. Rb7 {[%clk 0:01:08.3]} 36... Ne3+ {[%clk 0:00:45.5]} 37. Kf3 {[%clk
0:01:08]} 37... Ng4 {[%clk 0:00:44.8]} 38. Rxb6 {[%clk 0:01:06]} 38... Rxf2+
{[%clk 0:00:44.7]} 39. Ke4 {[%clk 0:01:06.6]} 39... Re2+ {[%clk 0:00:44.7]} 40.
Kf3 {[%clk 0:01:05.7]} 40... Rf2+ {[%clk 0:00:41.5]} 41. Ke4 {[%clk 0:01:05.8]}
41... Nh6 {[%clk 0:00:40.6]} 42. Rb3 {[%clk 0:00:58.6]} 42... Nf5 {[%clk
0:00:37.5]} 43. Bb8 {[%clk 0:00:41.2]} 43... Rg2 {[%clk 0:00:36.5]} 44. Kf4
{[%clk 0:00:40.5]} 44... Rf2+ {[%clk 0:00:35.2]} 45. Ke4 {[%clk 0:00:40.4]}
45... Rg2 {[%clk 0:00:22.3]} 46. Kf4 {[%clk 0:00:40.5]} 46... Rg1 {[%clk
0:00:22.7]} 47. Ba7 {[%clk 0:00:36.6]} 47... Rf1+ {[%clk 0:00:21.6]} 48. Ke4
{[%clk 0:00:36.6]} 48... Ne7 {[%clk 0:00:19.9]} 49. Be3 {[%clk 0:00:33.3]} 49...
Nd5 {[%clk 0:00:19]} 50. Bg5 {[%clk 0:00:30.2]} 50... Re1+ {[%clk 0:00:17.7]}
51. Kd4 {[%clk 0:00:30.5]} 51... f6 {[%clk 0:00:13.7]} 52. exf6 {[%clk
0:00:29.4]} 52... gxf6 {[%clk 0:00:14.3]} 53. Bd2 {[%clk 0:00:28.2]} 53... Rd1
{[%clk 0:00:14]} 54. Kd3 {[%clk 0:00:27.4]} 54... Kf5 {[%clk 0:00:13.9]} 55. Ke2
{[%clk 0:00:27.1]} 55... Ra1 {[%clk 0:00:13.2]} 56. Kf3 {[%clk 0:00:25.7]} 56...
Ra2 {[%clk 0:00:12.7]} 57. Bh6 {[%clk 0:00:24.6]} 57... e5 {[%clk 0:00:13]} 58.
g4+ {[%clk 0:00:19.2]} 58... hxg4+ {[%clk 0:00:13.6]} 59. Kg3 {[%clk 0:00:20.1]}
59... Nf4 {[%clk 0:00:12.8]} 60. h5 {[%clk 0:00:15.4]} 60... Nxh5+ {[%clk
0:00:09.4]} 61. Kh4 {[%clk 0:00:14.6]} 61... Rh2+ {[%clk 0:00:10.3]} 0-1

[Event "Early-Titled-Tuesday-Blitz-September-12-2023"]
[Site "Chess.com"]
[Date "2023.09.12"]
[Round "3"]
[White "sergeikim"]
[Black "AlexanderL"]
[Result "0-1"]
[WhiteElo "2583"]
[BlackElo "2856"]
[TimeControl "180+1"]
[EndTime "8:29:01 PDT"]
[Termination "AlexanderL won by resignation"]

1. d4 {[%clk 0:03:00.9]} 1... d5 {[%clk 0:02:59.4]} 2. c4 {[%clk 0:03:00.8]}
2... c5 {[%clk 0:02:59.3]} 3. e3 {[%clk 0:03:00.5]} 3... cxd4 {[%clk 0:02:59.2]}
4. exd4 {[%clk 0:03:00.3]} 4... Nf6 {[%clk 0:02:58.3]} 5. Nf3 {[%clk 0:03:00.3]}
5... Nc6 {[%clk 0:02:56.6]} 6. Nc3 {[%clk 0:02:59.8]} 6... a6 {[%clk 0:02:56.5]}
7. a3 {[%clk 0:02:58.5]} 7... Bg4 {[%clk 0:02:55.3]} 8. Be3 {[%clk 0:02:51.2]}
8... e6 {[%clk 0:02:54.1]} 9. Bd3 {[%clk 0:02:43.3]} 9... dxc4 {[%clk
0:02:53.8]} 10. Bxc4 {[%clk 0:02:43.2]} 10... Bd6 {[%clk 0:02:42]} 11. O-O
{[%clk 0:02:41]} 11... O-O {[%clk 0:02:41.2]} 12. Qe2 {[%clk 0:02:41.5]} 12...
Bc7 {[%clk 0:02:36.9]} 13. Rfd1 {[%clk 0:02:40.9]} 13... Ne7 {[%clk 0:02:28]}
14. Bg5 {[%clk 0:02:34.3]} 14... Qd6 {[%clk 0:02:02]} 15. h3 {[%clk 0:02:24.9]}
15... Bxf3 {[%clk 0:01:52.8]} 16. Qxf3 {[%clk 0:02:24.9]} 16... Qh2+ {[%clk
0:01:53.4]} 17. Kf1 {[%clk 0:02:24.8]} 17... Nfd5 {[%clk 0:01:54.1]} 18. Rac1
{[%clk 0:02:02.3]} 18... Bf4 {[%clk 0:01:47.3]} 19. Bxf4 {[%clk 0:02:01.1]}
19... Nxf4 {[%clk 0:01:47.3]} 20. g3 {[%clk 0:01:48]} 20... Qxh3+ {[%clk
0:01:30.1]} 21. Kg1 {[%clk 0:01:47.8]} 21... Nfg6 {[%clk 0:01:22.4]} 22. Qxb7
{[%clk 0:01:45.8]} 22... Rab8 {[%clk 0:01:11.5]} 23. Qxa6 {[%clk 0:01:39.2]}
23... Rxb2 {[%clk 0:01:10.6]} 24. Bf1 {[%clk 0:01:39.7]} 24... Qf5 {[%clk
0:01:08.8]} 25. Be2 {[%clk 0:01:22.9]} 25... h5 {[%clk 0:01:05.1]} 26. Qd3
{[%clk 0:01:21.6]} 26... Qa5 {[%clk 0:01:04.8]} 27. Ne4 {[%clk 0:01:06.9]} 27...
h4 {[%clk 0:01:00.6]} 28. Rc5 {[%clk 0:00:52.9]} 28... Qb6 {[%clk 0:01:00.2]}
29. Rb5 {[%clk 0:00:41.6]} 29... Rxb5 {[%clk 0:00:59.5]} 30. Qxb5 {[%clk
0:00:41.8]} 30... Qa7 {[%clk 0:00:53.7]} 31. Qc5 {[%clk 0:00:39.6]} 31... Qa8
{[%clk 0:00:51.8]} 32. Bf3 {[%clk 0:00:37.3]} 32... Qb8 {[%clk 0:00:51.9]} 33.
Qb4 {[%clk 0:00:31.5]} 33... hxg3 {[%clk 0:00:49.3]} 34. fxg3 {[%clk 0:00:29.5]}
34... Qd8 {[%clk 0:00:48.7]} 35. Kg2 {[%clk 0:00:27.8]} 35... Nd5 {[%clk
0:00:47.7]} 36. Qd2 {[%clk 0:00:26.7]} 36... Qe7 {[%clk 0:00:43.6]} 37. Nc5
{[%clk 0:00:26.1]} 37... Rb8 {[%clk 0:00:40.2]} 38. Re1 {[%clk 0:00:25]} 38...
Qd6 {[%clk 0:00:35.2]} 39. a4 {[%clk 0:00:23.7]} 39... Nge7 {[%clk 0:00:29.9]}
40. Re2 {[%clk 0:00:20.1]} 40... Nf5 {[%clk 0:00:29.8]} 41. Qg5 {[%clk
0:00:17.4]} 41... Nxd4 {[%clk 0:00:24.5]} 42. Ne4 {[%clk 0:00:12]} 42... Qa3
{[%clk 0:00:20.6]} 43. Rf2 {[%clk 0:00:12]} 43... Nxf3 {[%clk 0:00:18]} 44. Rxf3
{[%clk 0:00:12.1]} 44... Qxa4 {[%clk 0:00:12.8]} 45. Qe5 {[%clk 0:00:11.6]}
45... Rf8 {[%clk 0:00:10.1]} 46. Nd6 {[%clk 0:00:11.3]} 46... Qc2+ {[%clk
0:00:10]} 47. Kh3 {[%clk 0:00:10.9]} 47... Qh7+ {[%clk 0:00:10]} 48. Kg2 {[%clk
0:00:10.8]} 48... Qg6 {[%clk 0:00:10.6]} 49. Ne4 {[%clk 0:00:09.4]} 49... Ne7
{[%clk 0:00:10.1]} 50. Qg5 {[%clk 0:00:08.2]} 50... Qxe4 {[%clk 0:00:09.8]} 51.
Qxe7 {[%clk 0:00:08.4]} 51... e5 {[%clk 0:00:09.8]} 52. Qg5 {[%clk 0:00:07.8]}
52... f6 {[%clk 0:00:09.4]} 53. Qh5 {[%clk 0:00:07.2]} 53... Rd8 {[%clk
0:00:09.3]} 54. Kh3 {[%clk 0:00:07.6]} 54... Qh7 {[%clk 0:00:09]} 55. Qxh7+
{[%clk 0:00:07.1]} 55... Kxh7 {[%clk 0:00:09.9]} 56. Kg4 {[%clk 0:00:07.3]}
56... Kg6 {[%clk 0:00:10.2]} 57. Re3 {[%clk 0:00:07.4]} 57... Rd4+ {[%clk
0:00:10.5]} 58. Kf3 {[%clk 0:00:07.1]} 58... Kf5 {[%clk 0:00:11]} 59. Ra3 {[%clk
0:00:07.1]} 59... g5 {[%clk 0:00:10.9]} 60. Rb3 {[%clk 0:00:06.9]} 60... g4+
{[%clk 0:00:11.2]} 61. Ke3 {[%clk 0:00:06.9]} 61... Rd1 {[%clk 0:00:10.5]} 62.
Kf2 {[%clk 0:00:06.9]} 62... Rd2+ {[%clk 0:00:10.4]} 63. Ke3 {[%clk 0:00:07.1]}
63... Rg2 {[%clk 0:00:10.5]} 0-1

[Event "Early-Titled-Tuesday-Blitz-September-12-2023"]
[Site "Chess.com"]
[Date "2023.09.12"]
[Round "3"]
[White "Kirill_Klukin"]
[Black "laiciffOneslraCsungaM"]
[Result "1-0"]
[WhiteElo "2748"]
[BlackElo "2328"]
[TimeControl "180+1"]
[EndTime "8:29:03 PDT"]
[Termination "Kirill_Klukin won by resignation"]

1. d4 {[%clk 0:02:55.4]} 1... Nf6 {[%clk 0:02:59.2]} 2. Nf3 {[%clk 0:02:55.5]}
2... g6 {[%clk 0:02:59.5]} 3. e3 {[%clk 0:02:55.9]} 3... Bg7 {[%clk 0:02:59.3]}
4. Be2 {[%clk 0:02:56.8]} 4... O-O {[%clk 0:02:59.4]} 5. O-O {[%clk 0:02:57.7]}
5... c5 {[%clk 0:02:45.7]} 6. dxc5 {[%clk 0:02:57.4]} 6... Na6 {[%clk
0:02:42.9]} 7. a3 {[%clk 0:02:57.1]} 7... Nxc5 {[%clk 0:02:41.2]} 8. b4 {[%clk
0:02:57.4]} 8... Nce4 {[%clk 0:02:25.4]} 9. Bb2 {[%clk 0:02:57.3]} 9... d6
{[%clk 0:02:25.3]} 10. c4 {[%clk 0:02:57.2]} 10... Be6 {[%clk 0:02:22.3]} 11.
Nd4 {[%clk 0:02:56.8]} 11... Bd7 {[%clk 0:02:21.3]} 12. Nd2 {[%clk 0:02:52.2]}
12... Nxd2 {[%clk 0:02:20.9]} 13. Qxd2 {[%clk 0:02:53.1]} 13... Rc8 {[%clk
0:02:16]} 14. Rac1 {[%clk 0:02:53.1]} 14... a6 {[%clk 0:02:15.6]} 15. Bf3 {[%clk
0:02:52.6]} 15... Bc6 {[%clk 0:02:13.9]} 16. Nxc6 {[%clk 0:02:50.8]} 16... bxc6
{[%clk 0:02:14.8]} 17. Rfd1 {[%clk 0:02:51.1]} 17... Nd7 {[%clk 0:02:14.8]} 18.
Bxg7 {[%clk 0:02:46.1]} 18... Kxg7 {[%clk 0:02:15.7]} 19. c5 {[%clk 0:02:46.5]}
19... d5 {[%clk 0:02:13.1]} 20. e4 {[%clk 0:02:39.7]} 20... e6 {[%clk
0:02:07.6]} 21. Be2 {[%clk 0:02:36.2]} 21... Ra8 {[%clk 0:02:01.6]} 22. a4
{[%clk 0:02:30.5]} 22... Qc7 {[%clk 0:01:57.9]} 23. b5 {[%clk 0:02:26.8]} 23...
axb5 {[%clk 0:01:57.7]} 24. axb5 {[%clk 0:02:27]} 24... cxb5 {[%clk 0:01:52.8]}
25. exd5 {[%clk 0:02:27.2]} 25... exd5 {[%clk 0:01:47]} 26. Qxd5 {[%clk
0:02:20.6]} 26... Nf6 {[%clk 0:01:40.2]} 27. Qd6 {[%clk 0:01:47.9]} 27... Qa5
{[%clk 0:01:30.3]} 28. Bf3 {[%clk 0:01:38.3]} 28... Rad8 {[%clk 0:01:29.6]} 29.
Qe5 {[%clk 0:01:38.2]} 29... Rxd1+ {[%clk 0:01:29.4]} 30. Rxd1 {[%clk
0:01:39.1]} 30... Re8 {[%clk 0:01:29.4]} 31. Qa1 {[%clk 0:01:33.3]} 31... Qxa1
{[%clk 0:01:17.5]} 32. Rxa1 {[%clk 0:01:34.2]} 32... Nd7 {[%clk 0:01:12.2]} 33.
c6 {[%clk 0:00:46.4]} 33... Ne5 {[%clk 0:01:10.5]} 34. Bd5 {[%clk 0:00:46.6]}
34... Rc8 {[%clk 0:01:04.4]} 35. Rc1 {[%clk 0:00:36.1]} 35... g5 {[%clk
0:00:55.9]} 36. Rc5 {[%clk 0:00:19]} 36... b4 {[%clk 0:00:50.8]} 37. c7 {[%clk
0:00:18.5]} 37... b3 {[%clk 0:00:48.4]} 38. Bxb3 {[%clk 0:00:16.9]} 38... Nd3
{[%clk 0:00:40.6]} 39. Rc3 {[%clk 0:00:12.6]} 39... Nb4 {[%clk 0:00:20.6]} 40.
Ba4 {[%clk 0:00:08.1]} 40... Nd5 {[%clk 0:00:20.2]} 41. Rc5 {[%clk 0:00:08.1]}
41... Nxc7 {[%clk 0:00:17.9]} 42. h3 {[%clk 0:00:04]} 42... Ra8 {[%clk
0:00:16.7]} 43. Rxg5+ {[%clk 0:00:04.6]} 43... Kf6 {[%clk 0:00:16.5]} 44. Rg4
{[%clk 0:00:05.5]} 44... Nd5 {[%clk 0:00:15.9]} 45. Bb3 {[%clk 0:00:05.8]} 45...
Ne7 {[%clk 0:00:14]} 46. Rf4+ {[%clk 0:00:06]} 46... Kg6 {[%clk 0:00:12.5]} 47.
Bxf7+ {[%clk 0:00:05.7]} 47... Kg7 {[%clk 0:00:12.9]} 48. Bc4 {[%clk 0:00:05.5]}
48... Ng6 {[%clk 0:00:13.1]} 49. Rg4 {[%clk 0:00:05.2]} 49... Ra1+ {[%clk
0:00:12.2]} 50. Kh2 {[%clk 0:00:05.3]} 50... Ra3 {[%clk 0:00:12.9]} 51. Bd5
{[%clk 0:00:04.2]} 51... Kf6 {[%clk 0:00:13.3]} 52. Rg3 {[%clk 0:00:03.5]} 52...
Ke5 {[%clk 0:00:12.6]} 53. Rxa3 {[%clk 0:00:03.5]} 53... Kxd5 {[%clk 0:00:13]}
54. Ra5+ {[%clk 0:00:04.2]} 54... Ke6 {[%clk 0:00:12.9]} 55. Ra6+ {[%clk
0:00:04.6]} 55... Kf5 {[%clk 0:00:13.1]} 56. Rxg6 {[%clk 0:00:05.5]} 1-0

[Event "Early-Titled-Tuesday-Blitz-September-12-2023"]
[Site "Chess.com"]
[Date "2023.09.12"]
[Round "3"]
[White "Payyappat"]
[Black "Alex_Banzea"]
[Result "1-0"]
[WhiteElo "2497"]
[BlackElo "2644"]
[TimeControl "180+1"]
[EndTime "8:29:05 PDT"]
[Termination "Payyappat won on time"]

1. e4 {[%clk 0:03:00.9]} 1... c6 {[%clk 0:01:34.1]} 2. d4 {[%clk 0:02:58.4]}
2... d5 {[%clk 0:01:35]} 3. Nc3 {[%clk 0:02:53.7]} 3... dxe4 {[%clk 0:01:35.1]}
4. Nxe4 {[%clk 0:02:52.8]} 4... Nf6 {[%clk 0:01:36]} 5. Nxf6+ {[%clk 0:02:47.3]}
5... exf6 {[%clk 0:01:36.9]} 6. Bc4 {[%clk 0:02:46.4]} 6... Bd6 {[%clk
0:01:37.1]} 7. Qe2+ {[%clk 0:02:45.8]} 7... Be7 {[%clk 0:01:37.6]} 8. Nf3 {[%clk
0:02:45]} 8... O-O {[%clk 0:01:38.5]} 9. O-O {[%clk 0:02:45.6]} 9... Bd6 {[%clk
0:01:39.2]} 10. Re1 {[%clk 0:02:45.9]} 10... Na6 {[%clk 0:01:38.6]} 11. c3
{[%clk 0:02:45.3]} 11... Nc7 {[%clk 0:01:39]} 12. Be3 {[%clk 0:02:39.9]} 12...
Re8 {[%clk 0:01:38.1]} 13. Bb3 {[%clk 0:02:35.7]} 13... Nd5 {[%clk 0:01:37.3]}
14. Qd2 {[%clk 0:02:31.1]} 14... Bg4 {[%clk 0:01:34]} 15. Nh4 {[%clk 0:02:25.6]}
15... g5 {[%clk 0:01:10.5]} 16. h3 {[%clk 0:01:58.5]} 16... Be6 {[%clk
0:00:35.2]} 17. Nf3 {[%clk 0:01:52.8]} 17... Qd7 {[%clk 0:00:35.2]} 18. Bxg5
{[%clk 0:00:12.3]} 18... Bxh3 {[%clk 0:00:15]} 19. Bxd5 {[%clk 0:00:09.9]} 19...
cxd5 {[%clk 0:00:11.2]} 20. Bxf6 {[%clk 0:00:09.9]} 20... Qg4 {[%clk 0:00:07.6]}
21. Qg5+ {[%clk 0:00:09.3]} 21... Qxg5 {[%clk 0:00:07.7]} 22. Nxg5 {[%clk
0:00:09.2]} 22... Bf5 {[%clk 0:00:07.1]} 23. Nf3 {[%clk 0:00:08.8]} 23... h6
{[%clk 0:00:06.5]} 24. Be5 {[%clk 0:00:09]} 24... Bf8 {[%clk 0:00:06.3]} 25. Nh4
{[%clk 0:00:08.6]} 25... Be6 {[%clk 0:00:06]} 26. Re3 {[%clk 0:00:08.8]} 26...
Kh7 {[%clk 0:00:04]} 27. f4 {[%clk 0:00:08]} 27... Be7 {[%clk 0:00:04.2]} 28. f5
{[%clk 0:00:04.2]} 28... Bxh4 {[%clk 0:00:03.7]} 29. fxe6 {[%clk 0:00:05.1]}
29... fxe6 {[%clk 0:00:03.6]} 30. Rf1 {[%clk 0:00:05.4]} 30... Rf8 {[%clk
0:00:04.2]} 31. Ref3 {[%clk 0:00:05.4]} 31... Kg8 {[%clk 0:00:04.2]} 32. g3
{[%clk 0:00:05.5]} 32... Bg5 {[%clk 0:00:03.9]} 33. Kg2 {[%clk 0:00:06]} 33...
Rxf3 {[%clk 0:00:04.2]} 34. Rxf3 {[%clk 0:00:06.9]} 34... Rf8 {[%clk 0:00:04.6]}
35. b3 {[%clk 0:00:07.1]} 35... Rxf3 {[%clk 0:00:02.7]} 36. Kxf3 {[%clk
0:00:08]} 36... Kf7 {[%clk 0:00:02.8]} 37. Kg4 {[%clk 0:00:08.4]} 37... b5
{[%clk 0:00:02.8]} 38. a4 {[%clk 0:00:08.2]} 38... bxa4 {[%clk 0:00:02.3]} 39.
bxa4 {[%clk 0:00:09.1]} 39... a6 {[%clk 0:00:02.9]} 40. Kh5 {[%clk 0:00:07.3]}
40... Bd2 {[%clk 0:00:02.8]} 41. g4 {[%clk 0:00:07.6]} 41... Ke7 {[%clk
0:00:02.3]} 42. Bg7 {[%clk 0:00:07.7]} 42... Kf7 {[%clk 0:00:02.3]} 43. Bxh6
{[%clk 0:00:07.8]} 43... Bxc3 {[%clk 0:00:03.2]} 44. Be3 {[%clk 0:00:08.4]}
44... e5 {[%clk 0:00:03.1]} 45. dxe5 {[%clk 0:00:09.3]} 45... d4 {[%clk
0:00:03.9]} 46. Bf4 {[%clk 0:00:08]} 46... d3 {[%clk 0:00:03.8]} 47. g5 {[%clk
0:00:08]} 47... Bxe5 {[%clk 0:00:03.1]} 48. g6+ {[%clk 0:00:08.3]} 48... Kg8
{[%clk 0:00:02.9]} 49. Bd2 {[%clk 0:00:08.6]} 49... Bd4 {[%clk 0:00:03]} 50. Kg5
{[%clk 0:00:08.9]} 50... Kf8 {[%clk 0:00:03.3]} 51. Kh6 {[%clk 0:00:09.2]} 51...
Kg8 {[%clk 0:00:02.5]} 52. Kg5 {[%clk 0:00:09.3]} 52... Kg7 {[%clk 0:00:02.5]}
53. Kf5 {[%clk 0:00:10.2]} 53... Kg8 {[%clk 0:00:02.6]} 54. Ke4 {[%clk
0:00:10.3]} 54... Bf6 {[%clk 0:00:01.7]} 55. Bh6 {[%clk 0:00:10.5]} 55... d2
{[%clk 0:00:01.1]} 56. Bxd2 {[%clk 0:00:10.8]} 56... Kg7 {[%clk 0:00:02]} 57.
Kf5 {[%clk 0:00:11.7]} 57... Bb2 {[%clk 0:00:01.6]} 58. Bg5 {[%clk 0:00:11.6]}
58... Kg8 {[%clk 0:00:02.5]} 59. Bh6 {[%clk 0:00:11.7]} 59... Ba1 {[%clk
0:00:02.9]} 60. Ke6 {[%clk 0:00:12.2]} 60... Bc3 {[%clk 0:00:03.2]} 61. Kd6
{[%clk 0:00:12.7]} 61... Bd4 {[%clk 0:00:02.8]} 62. Kc6 {[%clk 0:00:13]} 62...
Bf2 {[%clk 0:00:02.8]} 63. a5 {[%clk 0:00:11.6]} 63... Be1 {[%clk 0:00:02.6]}
64. Kb6 {[%clk 0:00:11.8]} 64... Bf2+ {[%clk 0:00:01.2]} 65. Kxa6 {[%clk
0:00:12.7]} 65... Bg1 {[%clk 0:00:01.1]} 66. Kb7 {[%clk 0:00:13.3]} 1-0

[Event "Early-Titled-Tuesday-Blitz-September-12-2023"]
[Site "Chess.com"]
[Date "2023.09.12"]
[Round "3"]
[White "zverr1"]
[Black "Niilo1"]
[Result "0-1"]
[WhiteElo "2494"]
[BlackElo "2285"]
[TimeControl "180+1"]
[EndTime "8:29:07 PDT"]
[Termination "Niilo1 won by checkmate"]

1. d4 {[%clk 0:03:00.9]} 1... Nf6 {[%clk 0:02:59.9]} 2. c4 {[%clk 0:03:01.4]}
2... e6 {[%clk 0:03:00.1]} 3. Nf3 {[%clk 0:03:01.8]} 3... d5 {[%clk 0:02:58.7]}
4. g3 {[%clk 0:03:02.3]} 4... Bb4+ {[%clk 0:02:57.8]} 5. Bd2 {[%clk 0:03:02.1]}
5... Be7 {[%clk 0:02:57.8]} 6. Bg2 {[%clk 0:03:02.2]} 6... O-O {[%clk
0:02:58.4]} 7. O-O {[%clk 0:03:03.1]} 7... c6 {[%clk 0:02:58.7]} 8. Bc3 {[%clk
0:03:02.1]} 8... Ne4 {[%clk 0:02:55.9]} 9. Nbd2 {[%clk 0:02:59.9]} 9... Nxc3
{[%clk 0:02:55.8]} 10. bxc3 {[%clk 0:03:00.8]} 10... b6 {[%clk 0:02:52.2]} 11.
Ne5 {[%clk 0:02:49.1]} 11... Bb7 {[%clk 0:02:51.6]} 12. cxd5 {[%clk 0:02:45.1]}
12... cxd5 {[%clk 0:02:44.6]} 13. c4 {[%clk 0:02:45.1]} 13... Nd7 {[%clk
0:02:44.3]} 14. Nxd7 {[%clk 0:02:36.5]} 14... Qxd7 {[%clk 0:02:44.2]} 15. e3
{[%clk 0:02:33.8]} 15... Rac8 {[%clk 0:02:37]} 16. Rc1 {[%clk 0:02:29.6]} 16...
Ba6 {[%clk 0:02:32.4]} 17. Qb3 {[%clk 0:02:15.3]} 17... dxc4 {[%clk 0:02:14.1]}
18. Nxc4 {[%clk 0:02:16.2]} 18... Qc7 {[%clk 0:02:09.1]} 19. Nd2 {[%clk
0:02:00.3]} 19... Qxc1 {[%clk 0:02:03.5]} 20. Rxc1 {[%clk 0:02:01.2]} 20...
Rxc1+ {[%clk 0:02:03.8]} 21. Bf1 {[%clk 0:02:01.5]} 21... Rfc8 {[%clk
0:01:53.5]} 22. Kg2 {[%clk 0:02:00.2]} 22... Bb7+ {[%clk 0:01:53.6]} 23. e4
{[%clk 0:01:54]} 23... R1c2 {[%clk 0:01:51.6]} 24. Qe3 {[%clk 0:01:42.6]} 24...
f5 {[%clk 0:01:21.4]} 25. Kh3 {[%clk 0:01:34.7]} 25... Bb4 {[%clk 0:00:58.2]}
26. exf5 {[%clk 0:01:23.9]} 26... Bxd2 {[%clk 0:00:54.9]} 27. Qxe6+ {[%clk
0:01:24.5]} 27... Kh8 {[%clk 0:00:55.3]} 28. f6 {[%clk 0:01:23.8]} 28... Bh6
{[%clk 0:00:41.4]} 29. f7 {[%clk 0:01:23]} 29... Rf8 {[%clk 0:00:36.3]} 30. Qe7
{[%clk 0:00:59]} 30... Bc8+ {[%clk 0:00:22.6]} 31. Kg2 {[%clk 0:00:59.6]} 31...
g6 {[%clk 0:00:22.9]} 32. Bd3 {[%clk 0:00:53.4]} 32... Rd2 {[%clk 0:00:11.5]}
33. Bc4 {[%clk 0:00:53.4]} 33... Rxd4 {[%clk 0:00:07.2]} 34. Bb3 {[%clk
0:00:52.9]} 34... Bg7 {[%clk 0:00:06.9]} 35. h4 {[%clk 0:00:51.8]} 35... Bf5
{[%clk 0:00:06]} 36. h5 {[%clk 0:00:50.7]} 36... Re4 {[%clk 0:00:06.5]} 37. Qxa7
{[%clk 0:00:49.6]} 37... gxh5 {[%clk 0:00:05.4]} 38. Qxb6 {[%clk 0:00:48.8]}
38... Bg6 {[%clk 0:00:04.2]} 39. Qd6 {[%clk 0:00:47.3]} 39... Re5 {[%clk
0:00:02.3]} 40. a4 {[%clk 0:00:44.7]} 40... Rf5 {[%clk 0:00:02.8]} 41. Qb4
{[%clk 0:00:38.5]} 41... Bxf7 {[%clk 0:00:02.1]} 42. Bc2 {[%clk 0:00:38.4]}
42... Rf6 {[%clk 0:00:01]} 43. a5 {[%clk 0:00:37]} 43... Bg6 {[%clk 0:00:01.6]}
44. Bxg6 {[%clk 0:00:36.6]} 44... Rxf2+ {[%clk 0:00:02.1]} 45. Kh3 {[%clk
0:00:36.8]} 45... hxg6 {[%clk 0:00:02.9]} 46. Qe4 {[%clk 0:00:35.2]} 46... R2f6
{[%clk 0:00:02.9]} 47. Qd3 {[%clk 0:00:33.5]} 47... Ra8 {[%clk 0:00:02.3]} 48.
Qd5 {[%clk 0:00:28.4]} 48... Rfa6 {[%clk 0:00:02.4]} 49. Qg5 {[%clk 0:00:26.8]}
49... Kh7 {[%clk 0:00:02.9]} 50. Qd5 {[%clk 0:00:26.8]} 50... Rxa5 {[%clk
0:00:03.3]} 51. Qf7 {[%clk 0:00:27.7]} 51... R5a7 {[%clk 0:00:03.3]} 52. Qd5
{[%clk 0:00:27.7]} 52... Ra3 {[%clk 0:00:03.6]} 53. Qe4 {[%clk 0:00:27.6]} 53...
R8a4 {[%clk 0:00:02.2]} 54. Qc2 {[%clk 0:00:26.3]} 54... Rg4 {[%clk 0:00:01.4]}
55. Kh2 {[%clk 0:00:24.7]} 55... Raxg3 {[%clk 0:00:02]} 56. Qc6 {[%clk 0:00:25]}
56... Kh6 {[%clk 0:00:02.2]} 57. Qe8 {[%clk 0:00:24.3]} 57... h4 {[%clk
0:00:01.6]} 58. Qb8 {[%clk 0:00:21.6]} 58... h3 {[%clk 0:00:01.8]} 59. Qb7
{[%clk 0:00:14.6]} 59... Rg5 {[%clk 0:00:02.4]} 60. Qc7 {[%clk 0:00:12.8]} 60...
Be5 {[%clk 0:00:02.8]} 61. Qc1 {[%clk 0:00:13.3]} 61... Rg2+ {[%clk 0:00:03.3]}
62. Kxh3 {[%clk 0:00:13.8]} 62... Rh2# {[%clk 0:00:03.5]} 0-1